lending/lending_fUSD_20260102
["ID","MTS","AMOUNT","RATE_DAILY","PERIOD"]
[400327456,1767377433304,-500.0,0.00027717,2]
[400327457,1767377433313,-500.0,0.00027717,2]
[400327458,1767377433323,-340.80208677,0.00027717,2]
[400327459,1767377433334,-445.89134248,0.00027717,2]
[400327460,1767377433343,-500.0,0.00027717,2]
[400327461,1767377433357,-500.0,0.00027717,2]
[400327462,1767377433366,-500.0,0.00027717,2]
[400327463,1767377433375,-500.0,0.00027717,2]
[400327464,1767377433385,-500.0,0.00027717,2]
[400327465,1767377433395,-500.0,0.00027717,2]
[400327466,1767377433405,-450.0,0.00027717,2]
[400327467,1767377433415,-500.0,0.00027717,2]
[400327468,1767377433426,-500.0,0.00027717,2]
[400327469,1767377433435,-500.0,0.00027717,2]
[400327470,1767377433444,-500.0,0.00027717,2]
[400327471,1767377433455,-500.0,0.00027717,2]
[400327472,1767377433464,-500.0,0.00027717,2]
[400327473,1767377433473,-500.0,0.00027717,2]
[400327474,1767377433483,-191.23104554,0.00027717,2]
[400327475,1767377433492,-500.0,0.00027717,2]
[400327476,1767377433502,-500.0,0.00027717,2]
[400327477,1767377433511,-500.0,0.00027717,2]
[400327478,1767377433520,-500.0,0.00027717,2]
[400327479,1767377433530,-500.0,0.00027717,2]
[400327480,1767377433539,-500.0,0.00027717,2]
[400327481,1767377433552,-500.0,0.00027717,2]
[400327482,1767377433561,-500.0,0.00027717,2]
[400327483,1767377433571,-500.0,0.00027717,2]
[400327484,1767377433580,-500.0,0.00027717,2]
[400327485,1767377433590,-500.0,0.00027717,2]
[400327486,1767377433600,-500.0,0.00027717,2]
[400327487,1767377433610,-500.0,0.00027717,2]
[400327488,1767377433621,-500.0,0.00027717,2]
[400327489,1767377433630,-463.0,0.00027718,2]
[400327490,1767377433639,-9999.99,0.00027718,2]
[400327491,1767377433648,-13951.92,0.00027718,2]
[400327492,1767377433658,-512.46,0.00027718,2]
[400327493,1767377433667,-6090.15992138,0.00027718,2]
[400327494,1767377433682,-96280.69535484,0.00027718,2]
[400327495,1767377433693,-1765.86379233,0.00027718,2]
[400327496,1767377433705,-2396.71093145,0.00027718,2]
[400327497,1767377433714,-999.99,0.00027718,2]
[400327498,1767377433723,-5110.51,0.00027963,2]
[400327499,1767377433732,-2433.0,0.00027973,2]
[400327500,1767377433741,-565.0,0.00027973,2]
[400327501,1767377433753,-306.92,0.00027991,14]
[400327502,1767377433763,-463.0,0.00028001,2]
[400327503,1767377433772,-499.99,0.00028001,2]
[400327504,1767377433781,-300.0,0.00028057,2]
[400327505,1767377433790,-306.92,0.00028265,14]
[400327506,1767377433800,-463.0,0.00028284,2]
[400327507,1767377433809,-306.92,0.00028539,14]
[400327508,1767377433818,-463.0,0.00028567,2]
[400327509,1767377433827,-151.86245973,0.00028618,2]
[400327510,1767377433836,-306.96723832,0.00028813,14]
[400327511,1767377433845,-463.0,0.0002885,2]
[400327512,1767377433854,-463.0,0.00029132,2]
[400327513,1767377433865,-587.0,0.00029227,2]
[400327514,1767377433875,-167.48,0.00029785,2]
[400327515,1767377433884,-2022.24129571,0.0003,2]
[400327516,1767377433893,-150.0,0.00030158,2]
[400327517,1767377433903,-150.0,0.00030158,2]
[400327518,1767377433912,-1403.0,0.00030158,2]
[400327519,1767377433921,-613.0,0.00030158,2]
[400327520,1767377433930,-1536.8613533,0.00030183,2]
[400327521,1767377433942,-1187.7018793,0.00030183,2]
[400327522,1767377433951,-164.67,0.00030566,2]
[400327523,1767377433961,-5224.2869455,0.00030576,37]
[400327524,1767377433974,-14351.55240873,0.00030576,37]
[400327525,1767377433985,-3353.64365017,0.00030576,37]
[400327526,1767377433998,-1770.27866958,0.00030576,37]
[400327529,1767377437877,-701.20532303,0.00027618,2]
[400327530,1767377437887,-698.74467697,0.00030576,37]
[400327531,1767377437899,-1174.0667096,0.00030576,37]
[400327532,1767377437911,-1583.53603552,0.00030576,37]
[400327533,1767377437922,-489.23389195,0.00030576,37]
[400327534,1767377437933,-1560.96701198,0.00030576,37]
[400327535,1767377437944,-156.24,0.00030718,2]
[400327536,1767377437955,-2433.0,0.00030973,2]
[400327537,1767377437964,-565.0,0.00030973,2]
[400327538,1767377437975,-1558.61,0.00031083,2]
[400327539,1767377437985,-225.0,0.00031348,7]
[400327540,1767377437996,-225.0,0.00031474,2]
[400327541,1767377438007,-193.0,0.00031666,2]
[400327542,1767377438017,-223.0,0.00031957,2]
[400327543,1767377438026,-223.0,0.00032016,2]
[400327544,1767377438036,-167.48,0.00032056,2]
[400327545,1767377438046,-863.34137865,0.00032115,2]
[400327546,1767377438056,-223.0,0.00032328,7]
[400327547,1767377438067,-223.0,0.00032476,2]
[400327548,1767377438077,-156.24,0.00032638,2]
[400327549,1767377438086,-223.0,0.00032754,2]
[400327550,1767377438096,-225.0,0.00032902,2]
[400327551,1767377438106,-223.0,0.00032956,2]
[400327552,1767377438116,-150.0,0.00033,14]
[400327553,1767377438125,-225.0,0.00033094,2]
[400327554,1767377438135,-164.59,0.00033118,2]
[400327555,1767377438144,-150.0,0.00033158,2]
[400327556,1767377438154,-613.0,0.00033158,2]
[400327557,1767377438164,-1187.7018793,0.00033222,2]
[400327558,1767377438174,-223.0,0.00033283,2]
[400327559,1767377438183,-223.0,0.00033336,2]
[400327560,1767377438193,-223.0,0.00033348,2]
[400327561,1767377438203,-225.0,0.00033383,2]
[400327562,1767377438212,-223.0,0.00033621,7]
[400327563,1767377438221,-223.0,0.00033643,2]
[400327564,1767377438231,-183.23438447,0.00033648,2]
[400327565,1767377438243,-39.76561553,0.00033648,2]
[400327566,1767377438253,-223.0,0.00033883,2]
[400327567,1767377438263,-225.0,0.00033888,7]
[400327568,1767377438272,-1536.8613533,0.00033973,2]
[400327570,1767377438282,-2433.0,0.00033973,2]
[400327572,1767377438292,-565.0,0.00033973,2]
[400327575,1767377438302,-223.0,0.00034069,2]
[400327578,1767377438312,-223.0,0.00034209,2]
[400327581,1767377438322,-225.0,0.00034321,2]
[400327584,1767377438331,-223.0,0.00034377,2]
[400327587,1767377438341,-223.0,0.00034459,2]
[400327588,1767377438355,-1558.61,0.00034508,2]
[400327589,1767377438365,-156.24,0.00034558,2]
[400327590,1767377438374,-223.0,0.00034657,2]
[400327591,1767377438384,-660.557,0.00035195,41]
[400327592,1767377438394,-500.0,0.00035309,20]
[400327593,1767377438405,-654.0,0.00035616,39]
[400327594,1767377438415,-151.86245973,0.00035772,2]
[400327595,1767377438424,-179.52751018,0.00035922,2]
[400327596,1767377438436,-2203.86045078,0.00036012,2]
[400327597,1767377438474,-2906.64954922,0.00036012,2]
[400327598,1767377438483,-5000.0,0.0003602,2]
[400327599,1767377438493,-242.15863147,0.00036021,15]
[400327600,1767377438503,-349.37385781,0.00036021,15]
[400327601,1767377438513,-500.0,0.00036021,15]
[400327602,1767377438522,-250.0,0.00036021,15]
[400327603,1767377438532,-637.19583952,0.00036021,15]
[400327604,1767377438541,-282.99065,0.00036021,15]
[400327605,1767377438552,-5000.0,0.00036022,2]
[400327606,1767377438561,-4023.25989572,0.00036087,2]
[400327607,1767377438573,-976.74010428,0.00036087,2]
[400327608,1767377438583,-3061.75454572,0.00036105,2]
[400327609,1767377438594,-580.25878155,0.00036105,2]
[400327610,1767377438605,-388.59353548,0.00036105,2]
[400327611,1767377438616,-650.0,0.00036105,2]
[400327612,1767377438628,-319.39313725,0.00036105,2]
[400327613,1767377438639,-2520.02577266,0.0003611,3]
[400327614,1767377438651,-138.36552545,0.0003611,3]
[400327615,1767377438660,-1511.09336247,0.00036117,3]
[400327616,1767377438673,-1147.29793564,0.00036117,3]
[400327617,1767377438682,-168.38830041,0.00036118,3]
[400327618,1767377438694,-2490.0029977,0.00036118,3]
[400327619,1767377438705,-537.18436001,0.0003612,2]
[400327620,1767377438717,-1915.22880161,0.0003612,2]
[400327622,1767377440106,-701.20532301,0.00029308,2]
[400327623,1767377440118,-2547.58683838,0.0003612,2]
[400327624,1767377440128,-1654.83784661,0.00036122,3]
[400327625,1767377440234,-1003.5534515,0.00036122,3]
[400327626,1767377440244,-2658.39129811,0.00036127,3]
[400327627,1767377440254,-5000.0,0.00036128,2]
[400327628,1767377440263,-2658.39129811,0.0003613,3]
[400327629,1767377440273,-2658.39129811,0.00036131,3]
[400327630,1767377440283,-2658.39129811,0.00036132,3]
[400327631,1767377440293,-5000.0,0.00036132,2]
[400327632,1767377440302,-4797.0,0.00036137,2]
[400327633,1767377440312,-5110.51,0.00036138,2]
[400327634,1767377440322,-5320.00528254,0.0003614,2]
[400327635,1767377440331,-5000.0,0.00036141,2]
[400327636,1767377440340,-4495.11,0.00036142,2]
[400327637,1767377440351,-2658.39129811,0.00036147,3]
[400327638,1767377440363,-5000.0,0.00036157,2]
[400327639,1767377440373,-2658.39129811,0.00036191,3]
[400327640,1767377440384,-5000.0,0.00036201,2]
[400327641,1767377440395,-2658.39129811,0.00036223,3]
[400327642,1767377440406,-5000.0,0.00036233,2]
[400327643,1767377440417,-2658.39129811,0.00036251,3]
[400327644,1767377440429,-1187.7018793,0.00036261,2]
[400327645,1767377440439,-2658.39129811,0.00036272,3]
[400327646,1767377440450,-2658.39129811,0.0003628,3]
[400327647,1767377440461,-5000.0,0.00036282,2]
[400327648,1767377440472,-5000.0,0.0003629,2]
[400327649,1767377440481,-2658.39129811,0.00036294,3]
[400327650,1767377440491,-160.06,0.000363,30]
[400327651,1767377440501,-5000.0,0.00036304,2]
[400327652,1767377440510,-500.0,0.00036304,2]
[400327653,1767377440520,-500.0,0.00036304,2]
[400327654,1767377440530,-500.0,0.00036304,2]
[400327656,1767377440540,-500.0,0.00036304,2]
[400327657,1767377440549,-500.0,0.00036304,2]
[400327658,1767377440559,-334.56312933,0.00036304,2]
[400327659,1767377440569,-2658.39129811,0.00036312,4]
[400327660,1767377440579,-5000.0,0.00036322,2]
[400327661,1767377440589,-5110.51,0.00036328,2]
[400327662,1767377440598,-2658.39129811,0.00036338,4]
[400327663,1767377440607,-1674.33,0.00036348,2]
[400327664,1767377440617,-2658.39129811,0.00036383,4]
[400327665,1767377440627,-1449.0,0.00036393,5]
[400327666,1767377440637,-5000.0,0.00036393,2]
[400327667,1767377440646,-2000.0,0.000364,2]
[400327668,1767377440657,-2658.39129811,0.000364,4]
[400327669,1767377440667,-5000.0,0.0003641,2]
[400327670,1767377440677,-5316.78259622,0.00036421,4]
[400327671,1767377440687,-5000.0,0.00036431,2]
[400327672,1767377440697,-726.24,0.00036441,2]
[400327673,1767377440706,-156.24,0.00036478,2]
[400327674,1767377440716,-981.12,0.00036481,2]
[400327675,1767377440727,-2658.39129811,0.00036497,4]
[400327676,1767377440737,-2658.39129811,0.00036504,4]
[400327677,1767377440747,-5000.0,0.00036507,2]
[400327678,1767377440759,-3643.48,0.00036514,2]
[400327679,1767377440769,-2658.39129811,0.0003655,4]
[400327680,1767377440779,-1507.82,0.00036553,2]
[400327681,1767377440789,-5000.0,0.0003656,2]
[400327682,1767377440799,-2658.39129811,0.00036585,4]
[400327683,1767377440809,-5000.0,0.00036595,2]
[400327684,1767377440819,-662.51,0.00036602,2]
[400327685,1767377440829,-5316.78259622,0.00036679,4]
[400327686,1767377440840,-5000.0,0.00036689,2]
[400327687,1767377440850,-662.57,0.000367,2]
[400327688,1767377440860,-2658.39129811,0.00036708,4]
[400327689,1767377440870,-2658.39129811,0.00036713,4]
[400327690,1767377440881,-5000.0,0.00036718,2]
[400327691,1767377440890,-151.0,0.0003672,14]
[400327692,1767377440900,-5000.0,0.00036723,2]
[400327693,1767377440909,-2658.39129811,0.00036731,4]
[400327694,1767377440919,-168.41,0.00036737,2]
[400327695,1767377440928,-5000.0,0.00036741,2]
[400327696,1767377440938,-2500.0,0.00036762,2]
[400327697,1767377440947,-2658.39129811,0.00036777,4]
[400327698,1767377440957,-5000.0,0.00036787,2]
[400327699,1767377440967,-2658.39129811,0.00036811,4]
[400327700,1767377440976,-5000.0,0.00036821,2]
[400327701,1767377440987,-5316.78259622,0.00036828,4]
[400327702,1767377440996,-5000.0,0.00036838,2]
[400327703,1767377441007,-2558.01,0.00036869,2]
[400327704,1767377441016,-2658.39129811,0.00036893,4]
[400327705,1767377441026,-5000.0,0.00036903,2]
[400327706,1767377441036,-10633.5651924,0.00036917,4]
[400327707,1767377441046,-5287.30691729,0.00036927,2]
[400327708,1767377441056,-5000.0,0.00036927,2]
[400327709,1767377441066,-5000.0,0.00036927,2]
[400327710,1767377441076,-5000.0,0.00036927,2]
[400327711,1767377441086,-5000.0,0.00036927,2]
[400327712,1767377441095,-2433.0,0.00036973,2]
[400327713,1767377441105,-5000.0,0.00036976,2]
[400327714,1767377441115,-2558.0,0.00036979,2]
[400327715,1767377441124,-5000.0,0.00036994,2]
[400327716,1767377441135,-7361.36,0.00037363,2]
[400327717,1767377441144,-1536.8613533,0.00037762,2]
[400327718,1767377441154,-179.57,0.00037799,2]
[400327719,1767377441164,-200.0,0.00037844,2]
[400327720,1767377441173,-1558.61,0.00037933,2]
[400327721,1767377441183,-156.24,0.00038398,2]
[400327722,1767377441193,-300.0,0.00038619,2]
[400327723,1767377441202,-300.0,0.00038619,2]
[400327724,1767377441212,-303.85501722,0.00038619,2]
[400327725,1767377441222,-300.0,0.00038619,2]
[400327726,1767377441232,-404.63401173,0.00038619,2]
[400327727,1767377441241,-300.0,0.00038619,2]
[400327728,1767377441254,-595.88867019,0.00038619,2]
[400327729,1767377441264,-364.48459935,0.00038619,2]
[400327730,1767377441274,-300.0,0.00038619,2]
[400327731,1767377441284,-300.0,0.00038619,2]
[400327732,1767377441294,-300.0,0.00038619,2]
[400327733,1767377441304,-300.0,0.00038619,2]
[400327734,1767377441313,-300.0,0.00038619,2]
[400327735,1767377441323,-300.0,0.00038619,2]
[400327736,1767377441333,-303.47175408,0.00038619,2]
[400327737,1767377441343,-300.0,0.00038619,2]
[400327738,1767377441356,-578.04560059,0.00038619,2]
[400327739,1767377441369,-300.0,0.00038619,2]
[400327740,1767377441379,-1609.42147131,0.00038619,2]
[400327741,1767377441388,-300.0,0.00038619,2]
[400327742,1767377441401,-300.0,0.00038619,2]
[400327743,1767377441410,-300.0,0.00038619,2]
[400327744,1767377441420,-300.0,0.00038619,2]
[400327745,1767377441431,-300.0,0.00038619,2]
[400327746,1767377441441,-615.94778257,0.00038619,2]
[400327747,1767377441453,-304.64549813,0.00038619,2]
[400327748,1767377441465,-300.0,0.00038619,2]
[400327749,1767377441475,-300.0,0.00038619,2]
[400327750,1767377441484,-300.0,0.00038619,2]
[400327751,1767377441495,-300.0,0.00038619,2]
[400327752,1767377441504,-300.0,0.00038619,2]
[400327753,1767377441514,-303.85501722,0.00038619,2]
[400327754,1767377441523,-300.0,0.00038619,2]
[400327755,1767377441533,-300.0,0.00038619,2]
[400327756,1767377441544,-595.88867019,0.00038619,2]
[400327757,1767377441554,-364.48459935,0.00038619,2]
[400327758,1767377441563,-300.0,0.00038619,2]
[400327759,1767377441573,-300.0,0.00038619,2]
[400327760,1767377441583,-300.0,0.00038619,2]
[400327761,1767377441593,-300.0,0.00038619,2]
[400327762,1767377441603,-300.0,0.00038619,2]
[400327763,1767377441612,-300.0,0.00038619,2]
[400327764,1767377441623,-303.47175408,0.00038619,2]
[400327765,1767377441633,-300.0,0.00038619,2]
[400327766,1767377441643,-578.04560059,0.00038619,2]
[400327767,1767377441653,-300.0,0.00038619,2]
[400327768,1767377441664,-603.51496789,0.00038619,2]
[400327769,1767377441673,-300.0,0.00038619,2]
[400327770,1767377441683,-300.0,0.00038619,2]
[400327771,1767377441695,-300.0,0.00038619,2]
[400327772,1767377441704,-300.0,0.00038619,2]
[400327773,1767377441717,-300.0,0.00038619,2]
[400327774,1767377441727,-615.94778257,0.00038619,2]
[400327775,1767377441736,-304.64549813,0.00038619,2]
[400327776,1767377441746,-300.0,0.00038619,2]
[400327777,1767377441756,-300.0,0.00038619,2]
[400327778,1767377441765,-154.63789601,0.00038626,4]
[400327779,1767377441775,-500.0,0.00038636,120]
[400327780,1767377441786,-500.0,0.00038636,120]
[400327781,1767377441796,-500.0,0.00038636,120]
[400327782,1767377441805,-500.0,0.00038636,120]
[400327783,1767377441816,-500.0,0.00038636,120]
[400327784,1767377441826,-500.0,0.00038636,120]
[400327785,1767377441836,-500.0,0.00038636,120]
[400327786,1767377441845,-500.0,0.00038636,120]
[400327787,1767377441854,-500.0,0.00038636,2]
[400327788,1767377441865,-500.0,0.00038636,2]
[400327789,1767377441875,-500.0,0.00038636,2]
[400327790,1767377441886,-500.0,0.00038636,2]
[400327791,1767377441896,-500.0,0.00038636,2]
[400327792,1767377441906,-500.0,0.00038636,120]
[400327793,1767377441916,-500.0,0.00038636,120]
[400327794,1767377441926,-1357.32,0.00038636,2]
[400327795,1767377441936,-1357.32,0.00038636,2]
[400327796,1767377442150,-1357.32,0.00038636,2]
[400327797,1767377442160,-1357.32,0.00038636,2]
[400327798,1767377442169,-1357.32,0.00038636,2]
[400327799,1767377442179,-1357.32,0.00038636,2]
[400327800,1767377442188,-1357.32,0.00038636,2]
[400327801,1767377442197,-1357.32,0.00038636,2]
[400327802,1767377442207,-1357.32,0.00038636,2]
[400327803,1767377442216,-1357.32,0.00038636,2]
[400327804,1767377442224,-1357.32,0.00038636,2]
[400327805,1767377442234,-1357.32,0.00038636,2]
[400327806,1767377442243,-1357.32,0.00038636,2]
[400327807,1767377442252,-1357.32,0.00038636,2]
[400327808,1767377442261,-1357.32,0.00038636,2]
[400327809,1767377442270,-1357.32,0.00038636,2]
[400327810,1767377442279,-1357.32,0.00038636,2]
[400327811,1767377442288,-1357.32,0.00038636,2]
[400327812,1767377442298,-1357.32,0.00038636,2]
[400327813,1767377442306,-1357.32,0.00038636,2]
[400327814,1767377442316,-1357.32,0.00038636,2]
[400327815,1767377442325,-1357.32,0.00038636,2]
[400327816,1767377442336,-1357.32,0.00038636,2]
[400327817,1767377442346,-1357.52434418,0.00038636,2]
[400327818,1767377442359,-500.0,0.00038636,2]
[400327819,1767377442368,-500.0,0.00038636,2]
[400327820,1767377442377,-500.0,0.00038636,2]
[400327821,1767377442387,-500.0,0.00038636,2]
[400327822,1767377442397,-500.0,0.00038636,2]
[400327823,1767377442405,-500.0,0.00038636,2]
[400327824,1767377442414,-500.0,0.00038636,2]
[400327825,1767377442424,-222.83076836,0.00038636,2]
[400327826,1767377442433,-353.01,0.00038636,2]
[400327827,1767377442442,-353.01,0.00038636,2]
[400327828,1767377442452,-353.01,0.00038636,2]
[400327829,1767377442461,-353.01,0.00038636,2]
[400327830,1767377442470,-353.01,0.00038636,2]
[400327831,1767377442479,-353.01,0.00038636,2]
[400327832,1767377442487,-353.01,0.00038636,2]
[400327833,1767377442496,-353.01,0.00038636,2]
[400327834,1767377442505,-353.01,0.00038636,2]
[400327835,1767377442514,-353.01,0.00038636,2]
[400327836,1767377442523,-353.01,0.00038636,2]
[400327837,1767377442532,-353.01,0.00038636,2]
[400327838,1767377442541,-353.01,0.00038636,2]
[400327839,1767377442550,-353.01,0.00038636,2]
[400327840,1767377442559,-353.01,0.00038636,2]
[400327841,1767377442568,-353.01,0.00038636,2]
[400327842,1767377442577,-353.01,0.00038636,2]
[400327843,1767377442590,-353.01,0.00038636,2]
[400327844,1767377442599,-353.01,0.00038636,2]
[400327845,1767377442609,-353.01,0.00038636,2]
[400327846,1767377442620,-353.01,0.00038636,2]
[400327847,1767377442629,-353.01,0.00038636,2]
[400327848,1767377442640,-353.01,0.00038636,2]
[400327850,1767377442649,-353.18711206,0.00038636,2]
[400327852,1767377442659,-500.0,0.00038636,30]
[400327853,1767377442668,-500.0,0.00038636,120]
[400327854,1767377442678,-500.0,0.00038636,120]
[400327855,1767377442689,-500.0,0.00038636,120]
[400327856,1767377442699,-500.0,0.00038636,120]
[400327857,1767377442708,-500.0,0.00038636,45]
[400327858,1767377442718,-1003.91059731,0.00038636,2]
[400327859,1767377442728,-164.59,0.00038637,2]
[400327860,1767377442737,-6053.3539873,0.00038815,2]
[400327861,1767377442747,-3515.264191,0.00038815,2]
[400327862,1767377442757,-168.41,0.00038917,2]
[400327863,1767377442769,-1187.7018793,0.00039301,2]
[400327864,1767377442778,-1237.57017999,0.00039561,5]
[400327865,1767377442788,-179.57,0.00039675,2]
[400327866,1767377442798,-2000.0,0.000397,2]
[400327867,1767377442808,-502.0,0.00039926,2]
[400327868,1767377442817,-172.6,0.00039929,6]
[400327869,1767377442827,-2433.0,0.00039973,2]
[400327870,1767377442836,-1000.0,0.00039997,7]
[400327871,1767377442846,-2000.0,0.000401,2]
[400327872,1767377442856,-242.79677594,0.00040175,7]
[400327873,1767377442866,-451.49321932,0.00040175,30]
[400327874,1767377442876,-1000.0,0.00040303,7]
[400327875,1767377442885,-1352.2,0.00040354,6]
[400327876,1767377442895,-1000.0,0.00040442,7]
[400327877,1767377442905,-1000.0,0.00040499,7]
[400327878,1767377442915,-1000.0,0.00040712,7]
[400327879,1767377442925,-1000.0,0.00040741,7]
[400327880,1767377442935,-280.99961343,0.0004078,6]
[400327881,1767377442950,-937.32,0.0004078,6]
[400327883,1767377443656,-133.88038657,0.0004078,6]
[400327884,1767377443667,-200.0,0.000408,20]
[400327885,1767377443677,-546.11961343,0.00040933,7]
[400327886,1767377443688,-436.44038041,0.00040933,7]
[400327887,1767377443699,-17.44000616,0.00040933,7]
[400327888,1767377443708,-631.49851381,0.00041,2]
[400327889,1767377443732,-352.00649617,0.00041,2]
[400327890,1767377443741,-128.7882995,0.00041037,7]
[400327891,1767377444548,-701.20532301,0.00030998,2]
[400327892,1767377444558,-150.0,0.0004078,30]
[400327893,1767377444568,-871.2117005,0.00041037,7]
[400327894,1767377444577,-241.762092,0.00041063,15]
[400327895,1767377444586,-314.08278855,0.00041096,2]
[400327896,1767377444596,-1090.0,0.00041096,91]
[400327897,1767377444606,-1000.0,0.00041118,14]
[400327898,1767377444615,-1000.0,0.00041215,14]
[400327899,1767377444624,-480.84894786,0.00041233,14]
[400327900,1767377444633,-1000.0,0.00041261,14]
[400327901,1767377444643,-502.0,0.00041262,10]
[400327902,1767377444652,-1558.61,0.00041357,120]
[400327903,1767377444661,-1000.0,0.00041402,14]
[400327904,1767377444671,-280.69,0.00041445,14]
[400327905,1767377444681,-1000.0,0.00041476,14]
[400327906,1767377444690,-1000.0,0.00041516,14]
[400327907,1767377444699,-1000.0,0.00041528,14]
[400327908,1767377444709,-1536.8613533,0.00041552,2]
[400327909,1767377444718,-500.0,0.0004158,60]
[400327910,1767377444728,-900.0,0.0004158,60]
[400327911,1767377444737,-500.0,0.0004158,60]
[400327912,1767377444747,-150.0,0.0004158,120]
[400327913,1767377444760,-1222.64,0.000416,120]
[400327914,1767377444769,-1222.64,0.000416,120]
[400327915,1767377444778,-1222.64,0.000416,120]
[400327916,1767377444789,-599.49470217,0.000416,120]
[400327917,1767377444801,-623.14529783,0.000416,120]
[400327918,1767377444810,-1222.64,0.000416,120]
[400327919,1767377444821,-1222.64,0.000416,120]
[400327920,1767377444831,-1222.64,0.000416,120]
[400327921,1767377444840,-1222.64,0.000416,120]
[400327922,1767377444850,-1222.64,0.000416,120]
[400327923,1767377444859,-1222.64,0.000416,120]
[400327924,1767377444869,-1222.64,0.000416,120]
[400327925,1767377444878,-1222.64,0.000416,120]
[400327926,1767377444887,-683.55,0.000416,120]
[400327927,1767377444896,-587.98226111,0.000416,120]
[400327928,1767377444908,-634.65773889,0.000416,120]
[400327929,1767377444918,-1222.64,0.000416,120]
[400327930,1767377444928,-1222.64,0.000416,120]
[400327931,1767377444939,-1715.44269122,0.00041629,7]
[400327932,1767377444949,-299.29,0.00041698,14]
[400327933,1767377444959,-226.45242122,0.00041704,120]
[400327934,1767377444968,-2066.02858816,0.00041704,17]
[400327935,1767377444977,-2358.58395518,0.00041704,120]
[400327936,1767377444999,-178.0396252,0.00041704,120]
[400327937,1767377445013,-273.87594425,0.00041704,120]
[400327938,1767377445061,-123.3709583,0.00041704,120]
[400327945,1767377445828,-2066.12951707,0.00041704,120]
[400327946,1767377445838,-134.10958874,0.00041794,120]
[400327947,1767377445850,-365.89041126,0.00041794,120]
[400327948,1767377445859,-500.0,0.00041794,120]
[400327949,1767377445868,-495.28977885,0.00041794,120]
[400327950,1767377445878,-446.21101846,0.00041794,120]
[400327951,1767377445887,-500.0,0.00041794,120]
[400327952,1767377445896,-500.0,0.00041794,120]
[400327953,1767377445908,-500.0,0.00041794,120]
[400327954,1767377445917,-500.0,0.00041794,120]
[400327955,1767377445928,-500.0,0.00041794,120]
[400327956,1767377445937,-500.0,0.00041794,120]
[400327957,1767377445946,-500.0,0.00041794,2]
[400327958,1767377445955,-500.0,0.00041794,30]
[400327959,1767377445965,-500.0,0.00041794,120]
[400327960,1767377445974,-500.0,0.00041794,120]
[400327961,1767377445984,-500.0,0.00041794,120]
[400327962,1767377445993,-504.79592497,0.00041794,120]
[400327963,1767377446004,-500.0,0.00041794,45]
[400327964,1767377446013,-618.55158404,0.00041794,4]
[400327965,1767377446023,-151.0,0.00041801,14]
[400327966,1767377446032,-174.63671612,0.00041801,14]
[400327967,1767377446041,-1109.1708325,0.00041803,60]
[400327968,1767377446051,-389.58022115,0.00041804,120]
[400327969,1767377446060,-500.0,0.00041804,120]
[400327970,1767377446070,-500.0,0.00041804,120]
[400327971,1767377446079,-500.0,0.00041804,120]
[400327972,1767377446088,-500.0,0.00041804,120]
[400327973,1767377446097,-399.2650729,0.00041804,120]
[400327974,1767377446125,-114.9697329,0.00041804,120]
[400327975,1767377446136,-500.0,0.00041804,120]
[400327976,1767377446146,-502.38300963,0.00041804,120]
[400327977,1767377446155,-616.2703805,0.00041804,120]
[400327978,1767377446164,-500.0,0.00041804,120]
[400327979,1767377446174,-500.0,0.00041804,120]
[400327980,1767377446183,-500.0,0.00041804,120]